Workbook

Sheet Financial Model
A1: Timing | J1: 1 | K1: 2 | L1: 3 | M1: 4 | N1: 5 | O1: 6 | P1: 7 | Q1: 8 | R1: 9 | S1: 10 | T1: 11 | U1: 12 | V1: 13 | W1: 14 | X1: 15 | Y1: 16 | Z1: 17 | AA1: 18 | AB1: 19 | AC1: 20 | AD1: 21 | AE1: 22 | AF1: 23 | AG1: 24 | AH1: 25 | AI1: 26 | AJ1: 27 | AK1: 28 | AL1: 29 | AM1: 30 | AN1: 31 | AO1: 32 | AP1: 33 | AQ1: 34 | AR1: 35 | AS1: 36 | AT1: 37 | AU1: 38 | AV1: 39
B2: Date | E2: Equity IRR | F2: =E184 -> 0 | J2: =F8 -> 2019-01-01 | K2: =EDATE(J2,12) -> 2020-01-01 | L2: =EDATE(K2,12) -> 2021-01-01 | M2: 2022-01-01 | N2: 2023-01-01 | O2: 2024-01-01 | P2: 2025-01-01 | Q2: 2026-01-01 | R2: 2027-01-01 | S2: 2028-01-01 | T2: 2029-01-01 | U2: 2030-01-01 | V2: 2031-01-01 | W2: 2032-01-01 | X2: 2033-01-01 | Y2: 2034-01-01 | Z2: 2035-01-01 | AA2: 2036-01-01 | AB2: 2037-01-01 | AC2: 2038-01-01 | AD2: 2039-01-01 | AE2: 2040-01-01 | AF2: 2041-01-01 | AG2: 2042-01-01 | AH2: 2043-01-01 | AI2: =EDATE(AH2,12) -> 2044-01-01 | AJ2: =EDATE(AI2,12) -> 2045-01-01 | AK2: =EDATE(AJ2,12) -> 2046-01-01 | AL2: =EDATE(AK2,12) -> 2047-01-01 | AM2: =EDATE(AL2,12) -> 2048-01-01 | AN2: =EDATE(AM2,12) -> 2049-01-01 | AO2: =EDATE(AN2,12) -> 2050-01-01 | AP2: =EDATE(AO2,12) -> 2051-01-01 | AQ2: =EDATE(AP2,12) -> 2052-01-01 | AR2: =EDATE(AQ2,12) -> 2053-01-01 | AS2: =EDATE(AR2,12) -> 2054-01-01 | AT2: =EDATE(AS2,12) -> 2055-01-01 | AU2: =EDATE(AT2,12) -> 2056-01-01 | AV2: =EDATE(AU2,12) -> 2057-01-01
B3: Construction | E3: Project IRR | F3: =F53 -> 0.09014026807 | G3: =F8 -> 2019-01-01 | H3: =F10 -> 2022-01-01 | J3: =J2<$H$3 -> TRUE | K3: =K2<$H$3 -> TRUE | L3: TRUE | M3: FALSE | N3: FALSE | O3: FALSE | P3: FALSE | Q3: FALSE | R3: FALSE | S3: FALSE | T3: FALSE | U3: FALSE | V3: FALSE | W3: FALSE | X3: FALSE | Y3: FALSE | Z3: FALSE | AA3: FALSE | AB3: FALSE | AC3: FALSE | AD3: FALSE | AE3: FALSE | AF3: FALSE | AG3: FALSE | AH3: FALSE | AI3: =AI2<$H$3 -> FALSE | AJ3: FALSE | AK3: FALSE | AL3: FALSE | AM3: FALSE | AN3: FALSE | AO3: FALSE | AP3: FALSE | AQ3: FALSE | AR3: FALSE | AS3: FALSE | AT3: FALSE | AU3: FALSE | AV3: FALSE
B4: Operation | E4: Pre-tax IRR | F4: =F44 -> 0.1100018411 | G4: =F10 -> 2022-01-01 | H4: =F12 -> 2042-01-01 | J4: =AND(NOT(J3),J2<$H$4) -> FALSE | K4: =AND(NOT(K3),K2<$H$4) -> FALSE | L4: FALSE | M4: TRUE | N4: TRUE | O4: TRUE | P4: TRUE | Q4: TRUE | R4: TRUE | S4: TRUE | T4: TRUE | U4: TRUE | V4: TRUE | W4: TRUE | X4: TRUE | Y4: TRUE | Z4: TRUE | AA4: TRUE | AB4: TRUE | AC4: TRUE | AD4: TRUE | AE4: TRUE | AF4: TRUE | AG4: FALSE | AH4: FALSE | AI4: =AND(NOT(AI3),AI2<$H$4) -> FALSE | AJ4: FALSE | AK4: FALSE | AL4: FALSE | AM4: FALSE | AN4: FALSE | AO4: FALSE | AP4: FALSE | AQ4: FALSE | AR4: FALSE | AS4: FALSE | AT4: FALSE | AU4: FALSE | AV4: FALSE
A6: Assumptions
B7: Timing
C8: FC | E8: Date | F8: 2019-01-01
C9: Construction | E9: Years | F9: 3
C10: COD | E10: Date | F10: =EDATE(F8,F9*12) -> 2022-01-01
C11: Operations | E11: Years | F11: 20
C12: Decommissioning | E12: Date | F12: =EDATE(F10,F11*12) -> 2042-01-01
B14: Operating | G14: 0 | H14: 1 | I14: 5 | J14: 12
C15: EBITDA P50 | E15: Euro | F15: TRUE | H15: 100 | I15: 125 | J15: 80
C16: EBITDA P99 | E16: Euro | F16: =NOT(F15) -> FALSE | H16: 70 | I16: 80 | J16: 65
C17: Applied | H17: =H15*$F15+H16*$F16 -> 100 | I17: =I15*$F15+I16*$F16 -> 125 | J17: =J15*$F15+J16*$F16 -> 80
C19: Capital Expenditure | E19: Euro | F19: 725
C21: Tax Rate | E21: Percent | F21: 0.21
B23: Financing
C24: DSCR - P50 | E24: Times | F24: 1.35
C25: DSCR - P99 | E25: Times | F25: 1
C26: DSCR Applied | F26: =SUMPRODUCT(F15:F16*F24:F25) -> 1.35
C28: Up-Front Equity | E28: Percent | F28: 0.5
C30: Tenor | E30: Years | F30: 9
C31: Repayment Date | E31: Date | F31: =EDATE(F10,F30*12) -> 2031-01-01
F33: 1 | G33: 4 | H33: 7 | I33: 11
C34: Interest Rate | F34: 0.035 | G34: 0.04 | H34: 0.042 | I34: 0.044
C36: DSRA Percent | E36: Percent | F36: 0.5
A38: Operations
J39: =I39+J4 -> 0 | K39: =J39+K4 -> 0 | L39: 0 | M39: 1 | N39: 2 | O39: 3 | P39: 4 | Q39: 5 | R39: 6 | S39: 7 | T39: 8 | U39: 9 | V39: 10 | W39: 11 | X39: 12 | Y39: 13 | Z39: 14 | AA39: 15 | AB39: 16 | AC39: 17 | AD39: 18 | AE39: 19 | AF39: 20 | AG39: 20 | AH39: 20 | AI39: =AH39+AI4 -> 20 | AJ39: =AI39+AJ4 -> 20 | AK39: =AJ39+AK4 -> 20 | AL39: =AK39+AL4 -> 20 | AM39: =AL39+AM4 -> 20 | AN39: =AM39+AN4 -> 20 | AO39: =AN39+AO4 -> 20 | AP39: =AO39+AP4 -> 20 | AQ39: =AP39+AQ4 -> 20 | AR39: =AQ39+AR4 -> 20 | AS39: =AR39+AS4 -> 20 | AT39: =AS39+AT4 -> 20 | AU39: =AT39+AU4 -> 20 | AV39: =AU39+AV4 -> 20
B40: EBITDA | J40: =interpolate_look_up(J39,14:14,17:17)*J4 -> 0 | K40: =interpolate_look_up(K39,14:14,17:17)*K4 -> 0 | L40: 0 | M40: 100 | N40: 105.7371263 | O40: 111.8033989 | P40: 118.2177011 | Q40: 125 | R40: 117.2793196 | S40: 110.0355105 | T40: 103.2391185 | U40: 96.86250859 | V40: 90.87975285 | W40: 85.26652466 | X40: 80 | Y40: 80 | Z40: 80 | AA40: 80 | AB40: 80 | AC40: 80 | AD40: 80 | AE40: 80 | AF40: 80 | AG40: 0 | AH40: 0 | AI40: =interpolate_look_up(AI39,14:14,17:17)*AI4 -> 0 | AJ40: 0 | AK40: 0 | AL40: 0 | AM40: 0 | AN40: 0 | AO40: 0 | AP40: 0 | AQ40: 0 | AR40: 0 | AS40: 0 | AT40: 0 | AU40: 0 | AV40: 0
B42: Capital Expenditures | G42: =F9 -> 3 | H42: =F19 -> 725 | J42: =$H$42/$G$42*J3 -> 241.6666667 | K42: 241.6666667 | L42: 241.6666667 | M42: 0 | N42: 0 | O42: 0 | P42: 0 | Q42: 0 | R42: 0 | S42: 0 | T42: 0 | U42: 0 | V42: 0 | W42: 0 | X42: 0 | Y42: 0 | Z42: 0 | AA42: 0 | AB42: 0 | AC42: 0 | AD42: 0 | AE42: 0 | AF42: 0 | AG42: 0 | AH42: 0 | AI42: =$H$42/$G$42*AI3 -> 0 | AJ42: 0 | AK42: 0 | AL42: 0 | AM42: 0 | AN42: 0 | AO42: 0 | AP42: 0 | AQ42: 0 | AR42: 0 | AS42: 0 | AT42: 0 | AU42: 0 | AV42: 0
B44: Pre-tax Project IRR | F44: =IRR(J44:AH44) -> 0.1100018411 | J44: =J40-J42 -> -241.6666667 | K44: =K40-K42 -> -241.6666667 | L44: -241.6666667 | M44: 100 | N44: 105.7371263 | O44: 111.8033989 | P44: 118.2177011 | Q44: 125 | R44: 117.2793196 | S44: 110.0355105 | T44: 103.2391185 | U44: 96.86250859 | V44: 90.87975285 | W44: 85.26652466 | X44: 80 | Y44: 80 | Z44: 80 | AA44: 80 | AB44: 80 | AC44: 80 | AD44: 80 | AE44: 80 | AF44: 80 | AG44: 0 | AH44: 0 | AI44: =AI40-AI42 -> 0 | AJ44: 0 | AK44: 0 | AL44: 0 | AM44: 0 | AN44: 0 | AO44: 0 | AP44: 0 | AQ44: 0 | AR44: 0 | AS44: 0 | AT44: 0 | AU44: 0 | AV44: 0
B46: Accumulated Plant | J46: =I46+J42 -> 241.6666667 | K46: =J46+K42 -> 483.3333333 | L46: 725 | M46: 725 | N46: 725 | O46: 725 | P46: 725 | Q46: 725 | R46: 725 | S46: 725 | T46: 725 | U46: 725 | V46: 725 | W46: 725 | X46: 725 | Y46: 725 | Z46: 725 | AA46: 725 | AB46: 725 | AC46: 725 | AD46: 725 | AE46: 725 | AF46: 725 | AG46: 725 | AH46: 725 | AI46: =AH46+AI42 -> 725 | AJ46: =AI46+AJ42 -> 725 | AK46: =AJ46+AK42 -> 725 | AL46: =AK46+AL42 -> 725 | AM46: =AL46+AM42 -> 725 | AN46: =AM46+AN42 -> 725 | AO46: =AN46+AO42 -> 725 | AP46: =AO46+AP42 -> 725 | AQ46: =AP46+AQ42 -> 725 | AR46: =AQ46+AR42 -> 725 | AS46: =AR46+AS42 -> 725 | AT46: =AS46+AT42 -> 725 | AU46: =AT46+AU42 -> 725 | AV46: =AU46+AV42 -> 725
B47: Accumulated Depreciation | J47: =I47+J49 -> 0 | K47: =J47+K49 -> 0 | L47: 0 | M47: 36.25 | N47: 72.5 | O47: 108.75 | P47: 145 | Q47: 181.25 | R47: 217.5 | S47: 253.75 | T47: 290 | U47: 326.25 | V47: 362.5 | W47: 398.75 | X47: 435 | Y47: 471.25 | Z47: 507.5 | AA47: 543.75 | AB47: 580 | AC47: 616.25 | AD47: 652.5 | AE47: 688.75 | AF47: 725 | AG47: 725 | AH47: 725 | AI47: =AH47+AI49 -> 725 | AJ47: =AI47+AJ49 -> 725 | AK47: =AJ47+AK49 -> 725 | AL47: =AK47+AL49 -> 725 | AM47: =AL47+AM49 -> 725 | AN47: =AM47+AN49 -> 725 | AO47: =AN47+AO49 -> 725 | AP47: =AO47+AP49 -> 725 | AQ47: =AP47+AQ49 -> 725 | AR47: =AQ47+AR49 -> 725 | AS47: =AR47+AS49 -> 725 | AT47: =AS47+AT49 -> 725 | AU47: =AT47+AU49 -> 725 | AV47: =AU47+AV49 -> 725
B48: Net Plant | J48: =J46-J47 -> 241.6666667 | K48: =K46-K47 -> 483.3333333 | L48: 725 | M48: 688.75 | N48: 652.5 | O48: 616.25 | P48: 580 | Q48: 543.75 | R48: 507.5 | S48: 471.25 | T48: 435 | U48: 398.75 | V48: 362.5 | W48: 326.25 | X48: 290 | Y48: 253.75 | Z48: 217.5 | AA48: 181.25 | AB48: 145 | AC48: 108.75 | AD48: 72.5 | AE48: 36.25 | AF48: 0 | AG48: 0 | AH48: 0 | AI48: =AI46-AI47 -> 0 | AJ48: 0 | AK48: 0 | AL48: 0 | AM48: 0 | AN48: 0 | AO48: 0 | AP48: 0 | AQ48: 0 | AR48: 0 | AS48: 0 | AT48: 0 | AU48: 0 | AV48: 0
B49: Depreciation | G49: =F11 -> 20 | J49: =J46/$G$49*J4 -> 0 | K49: =K46/$G$49*K4 -> 0 | L49: 0 | M49: 36.25 | N49: 36.25 | O49: 36.25 | P49: 36.25 | Q49: 36.25 | R49: 36.25 | S49: 36.25 | T49: 36.25 | U49: 36.25 | V49: 36.25 | W49: 36.25 | X49: 36.25 | Y49: 36.25 | Z49: 36.25 | AA49: 36.25 | AB49: 36.25 | AC49: 36.25 | AD49: 36.25 | AE49: 36.25 | AF49: 36.25 | AG49: 0 | AH49: 0 | AI49: =AI46/$G$49*AI4 -> 0 | AJ49: 0 | AK49: 0 | AL49: 0 | AM49: 0 | AN49: 0 | AO49: 0 | AP49: 0 | AQ49: 0 | AR49: 0 | AS49: 0 | AT49: 0 | AU49: 0 | AV49: 0
B51: EBIT | J51: =J40-J49 -> 0 | K51: =K40-K49 -> 0 | L51: 0 | M51: 63.75 | N51: 69.48712634 | O51: 75.55339887 | P51: 81.96770113 | Q51: 88.75 | R51: 81.02931964 | S51: 73.78551051 | T51: 66.98911847 | U51: 60.61250859 | V51: 54.62975285 | W51: 49.01652466 | X51: 43.75 | Y51: 43.75 | Z51: 43.75 | AA51: 43.75 | AB51: 43.75 | AC51: 43.75 | AD51: 43.75 | AE51: 43.75 | AF51: 43.75 | AG51: 0 | AH51: 0 | AI51: =AI40-AI49 -> 0 | AJ51: 0 | AK51: 0 | AL51: 0 | AM51: 0 | AN51: 0 | AO51: 0 | AP51: 0 | AQ51: 0 | AR51: 0 | AS51: 0 | AT51: 0 | AU51: 0 | AV51: 0
B52: Taxes on EBIT | G52: =F21 -> 0.21 | J52: =J51*$G$52 -> 0 | K52: =K51*$G$52 -> 0 | L52: 0 | M52: 13.3875 | N52: 14.59229653 | O52: 15.86621376 | P52: 17.21321724 | Q52: 18.6375 | R52: 17.01615712 | S52: 15.49495721 | T52: 14.06771488 | U52: 12.7286268 | V52: 11.4722481 | W52: 10.29347018 | X52: 9.1875 | Y52: 9.1875 | Z52: 9.1875 | AA52: 9.1875 | AB52: 9.1875 | AC52: 9.1875 | AD52: 9.1875 | AE52: 9.1875 | AF52: 9.1875 | AG52: 0 | AH52: 0 | AI52: =AI51*$G$52 -> 0 | AJ52: 0 | AK52: 0 | AL52: 0 | AM52: 0 | AN52: 0 | AO52: 0 | AP52: 0 | AQ52: 0 | AR52: 0 | AS52: 0 | AT52: 0 | AU52: 0 | AV52: 0
B53: Post-tax Project IRR | F53: =IRR(J53:AH53) -> 0.09014026807 | J53: =J44-J52 -> -241.6666667 | K53: =K44-K52 -> -241.6666667 | L53: -241.6666667 | M53: 86.6125 | N53: 91.14482981 | O53: 95.93718511 | P53: 101.0044839 | Q53: 106.3625 | R53: 100.2631625 | S53: 94.54055331 | T53: 89.17140359 | U53: 84.13388179 | V53: 79.40750475 | W53: 74.97305448 | X53: 70.8125 | Y53: 70.8125 | Z53: 70.8125 | AA53: 70.8125 | AB53: 70.8125 | AC53: 70.8125 | AD53: 70.8125 | AE53: 70.8125 | AF53: 70.8125 | AG53: 0 | AH53: 0 | AI53: =AI44-AI52 -> 0 | AJ53: 0 | AK53: 0 | AL53: 0 | AM53: 0 | AN53: 0 | AO53: 0 | AP53: 0 | AQ53: 0 | AR53: 0 | AS53: 0 | AT53: 0 | AU53: 0 | AV53: 0
A55: Sources and Uses
B56: Uses
C57: EPC | I57: =SUM(J42:AH42) -> 725
C58: IDC | I58: =K58 -> 14 | J58: =SUM(J83:AH83) -> 0 | K58: 14 | L58: =K58-J58 -> 14
C59: DSRA | I59: =SUM(J84:AH84) -> 0
D60: Total | I60: =SUM(I57:I59) -> 739
B62: Sources
C63: Debt | I63: =E80 -> 0
C64: Equity | I64: =I60-I63 -> 739
D65: Total | I65: =SUM(I63:I64) -> 739
C67: Equity Up-front | G67: =F28 -> 0.5 | I67: =G67*I64 -> 369.5
C68: Remaining Equity Pro-Rata | I68: =I64-I67 -> 369.5
C69: Total Left Over for Pro-Rata | I69: =I65-I67 -> 369.5
C70: Equity as Percent of Left Over Pro-Rata | I70: =I68/I69 -> 1
C71: Debt as Percent of Left Over Pro-Rata | I71: =IF(I63,I63/I69) -> FALSE
A73: Sculpting
C74: Repayment Switch | G74: =F31 -> 2031-01-01 | J74: =AND(NOT(J3),J2<$G$74) -> FALSE | K74: =AND(NOT(K3),K2<$G$74) -> FALSE | L74: FALSE | M74: =AND(NOT(M3),M2<$G$74) -> TRUE | N74: TRUE | O74: TRUE | P74: TRUE | Q74: TRUE | R74: TRUE | S74: TRUE | T74: TRUE | U74: TRUE | V74: FALSE | W74: FALSE | X74: FALSE | Y74: FALSE | Z74: FALSE | AA74: FALSE | AB74: FALSE | AC74: FALSE | AD74: FALSE | AE74: FALSE | AF74: FALSE | AG74: FALSE | AH74: FALSE | AI74: =AND(NOT(AI3),AI2<$G$74) -> FALSE | AJ74: FALSE | AK74: FALSE | AL74: FALSE | AM74: FALSE | AN74: FALSE | AO74: FALSE | AP74: FALSE | AQ74: FALSE | AR74: FALSE | AS74: FALSE | AT74: FALSE | AU74: FALSE | AV74: FALSE
C75: CFADS | J75: =J74*J151 -> 0 | K75: =K74*K151 -> 0 | L75: 0 | M75: 0 | N75: 0 | O75: 0 | P75: 0 | Q75: 0 | R75: 0 | S75: 0 | T75: 0 | U75: 0 | V75: 0 | W75: 0 | X75: 0 | Y75: 0 | Z75: 0 | AA75: 0 | AB75: 0 | AC75: 0 | AD75: 0 | AE75: 0 | AF75: 0 | AG75: 0 | AH75: 0 | AI75: =AI74*AI151 -> 0 | AJ75: 0 | AK75: 0 | AL75: 0 | AM75: 0 | AN75: 0 | AO75: 0 | AP75: 0 | AQ75: 0 | AR75: 0 | AS75: 0 | AT75: 0 | AU75: 0 | AV75: 0
C76: Target DSCR | G76: =F26 -> 1.35 | J76: =$G$76 -> 1.35 | K76: =$G$76 -> 1.35 | L76: 1.35 | M76: 1.35 | N76: 1.35 | O76: 1.35 | P76: 1.35 | Q76: 1.35 | R76: 1.35 | S76: 1.35 | T76: 1.35 | U76: 1.35 | V76: 1.35 | W76: 1.35 | X76: 1.35 | Y76: 1.35 | Z76: 1.35 | AA76: 1.35 | AB76: 1.35 | AC76: 1.35 | AD76: 1.35 | AE76: 1.35 | AF76: 1.35 | AG76: 1.35 | AH76: 1.35 | AI76: 1.35 | AJ76: 1.35 | AK76: 1.35 | AL76: 1.35 | AM76: 1.35 | AN76: 1.35 | AO76: 1.35 | AP76: 1.35 | AQ76: 1.35 | AR76: 1.35 | AS76: 1.35 | AT76: 1.35 | AU76: 1.35 | AV76: 1.35
C77: Total Debt Service | J77: =J75/J76 -> 0 | K77: =K75/K76 -> 0 | L77: 0 | M77: 0 | N77: 0 | O77: 0 | P77: 0 | Q77: 0 | R77: 0 | S77: 0 | T77: 0 | U77: 0 | V77: 0 | W77: 0 | X77: 0 | Y77: 0 | Z77: 0 | AA77: 0 | AB77: 0 | AC77: 0 | AD77: 0 | AE77: 0 | AF77: 0 | AG77: 0 | AH77: 0 | AI77: =AI75/AI76 -> 0 | AJ77: 0 | AK77: 0 | AL77: 0 | AM77: 0 | AN77: 0 | AO77: 0 | AP77: 0 | AQ77: 0 | AR77: 0 | AS77: 0 | AT77: 0 | AU77: 0 | AV77: 0
C78: Interest Rate | J78: =LOOKUP(J1,33:33,34:34) -> 0.035 | K78: =LOOKUP(K1,33:33,34:34) -> 0.035 | L78: 0.035 | M78: 0.04 | N78: 0.04 | O78: 0.04 | P78: 0.042 | Q78: 0.042 | R78: 0.042 | S78: 0.042 | T78: 0.044 | U78: 0.044 | V78: 0.044 | W78: 0.044 | X78: 0.044 | Y78: 0.044 | Z78: 0.044 | AA78: 0.044 | AB78: 0.044 | AC78: 0.044 | AD78: 0.044 | AE78: 0.044 | AF78: 0.044 | AG78: 0.044 | AH78: 0.044 | AI78: =LOOKUP(AI1,33:33,34:34) -> 0.044 | AJ78: 0.044 | AK78: 0.044 | AL78: 0.044 | AM78: 0.044 | AN78: 0.044 | AO78: 0.044 | AP78: 0.044 | AQ78: 0.044 | AR78: 0.044 | AS78: 0.044 | AT78: 0.044 | AU78: 0.044 | AV78: 0.044
C79: Interest Rate Index | I79: 1 | J79: =I79*(1+J78*J4) -> 1 | K79: =J79*(1+K78*K4) -> 1 | L79: 1 | M79: 1.04 | N79: 1.0816 | O79: 1.124864 | P79: 1.172108288 | Q79: 1.221336836 | R79: 1.272632983 | S79: 1.326083569 | T79: 1.384431246 | U79: 1.44534622 | V79: 1.508941454 | W79: 1.575334878 | X79: 1.644649613 | Y79: 1.717014196 | Z79: 1.79256282 | AA79: 1.871435584 | AB79: 1.95377875 | AC79: 2.039745015 | AD79: 2.129493796 | AE79: 2.223191523 | AF79: 2.32101195 | AG79: 2.32101195 | AH79: 2.32101195 | AI79: =AH79*(1+AI78*AI4) -> 2.32101195 | AJ79: =AI79*(1+AJ78*AJ4) -> 2.32101195 | AK79: =AJ79*(1+AK78*AK4) -> 2.32101195 | AL79: =AK79*(1+AL78*AL4) -> 2.32101195 | AM79: =AL79*(1+AM78*AM4) -> 2.32101195 | AN79: =AM79*(1+AN78*AN4) -> 2.32101195 | AO79: =AN79*(1+AO78*AO4) -> 2.32101195 | AP79: =AO79*(1+AP78*AP4) -> 2.32101195 | AQ79: =AP79*(1+AQ78*AQ4) -> 2.32101195 | AR79: =AQ79*(1+AR78*AR4) -> 2.32101195 | AS79: =AR79*(1+AS78*AS4) -> 2.32101195 | AT79: =AS79*(1+AT78*AT4) -> 2.32101195 | AU79: =AT79*(1+AU78*AU4) -> 2.32101195 | AV79: =AU79*(1+AV78*AV4) -> 2.32101195
C80: PV of Debt Service | E80: =SUMPRODUCT(J77:AH77/J79:AH79) -> 0
A81: Funding
C82: EPC | J82: =J42 -> 241.6666667 | K82: 241.6666667 | L82: 241.6666667 | M82: 0 | N82: 0 | O82: 0 | P82: 0 | Q82: 0 | R82: 0 | S82: 0 | T82: 0 | U82: 0 | V82: 0 | W82: 0 | X82: 0 | Y82: 0 | Z82: 0 | AA82: 0 | AB82: 0 | AC82: 0 | AD82: 0 | AE82: 0 | AF82: 0 | AG82: 0 | AH82: 0 | AI82: =AI42 -> 0 | AJ82: 0 | AK82: 0 | AL82: 0 | AM82: 0 | AN82: 0 | AO82: 0 | AP82: 0 | AQ82: 0 | AR82: 0 | AS82: 0 | AT82: 0 | AU82: 0 | AV82: 0
C83: IDC | J83: =J115 -> 0 | K83: =K115 -> 0 | L83: =L115 -> 0 | M83: 0 | N83: 0 | O83: 0 | P83: 0 | Q83: 0 | R83: 0 | S83: 0 | T83: 0 | U83: 0 | V83: 0 | W83: 0 | X83: 0 | Y83: 0 | Z83: 0 | AA83: 0 | AB83: 0 | AC83: 0 | AD83: 0 | AE83: 0 | AF83: 0 | AG83: 0 | AH83: 0 | AI83: =AI115 -> 0 | AJ83: 0 | AK83: 0 | AL83: 0 | AM83: 0 | AN83: 0 | AO83: 0 | AP83: 0 | AQ83: 0 | AR83: 0 | AS83: 0 | AT83: 0 | AU83: 0 | AV83: 0
C84: DSRA
D85: Total | J85: =SUM(J82:J84) -> 241.6666667 | K85: =SUM(K82:K84) -> 241.6666667 | L85: 241.6666667 | M85: 0 | N85: 0 | O85: 0 | P85: 0 | Q85: 0 | R85: 0 | S85: 0 | T85: 0 | U85: 0 | V85: 0 | W85: 0 | X85: 0 | Y85: 0 | Z85: 0 | AA85: 0 | AB85: 0 | AC85: 0 | AD85: 0 | AE85: 0 | AF85: 0 | AG85: 0 | AH85: 0 | AI85: =SUM(AI82:AI84) -> 0 | AJ85: 0 | AK85: 0 | AL85: 0 | AM85: 0 | AN85: 0 | AO85: 0 | AP85: 0 | AQ85: 0 | AR85: 0 | AS85: 0 | AT85: 0 | AU85: 0 | AV85: 0
C87: Equity Up-Front | G87: =G67 -> 0.5 | H87: =I64 -> 739 | J87: =$H$87*$G$87 -> 369.5 | K87: =$H$87*$G$87 -> 369.5 | L87: 369.5 | M87: 369.5 | N87: 369.5 | O87: 369.5 | P87: 369.5 | Q87: 369.5 | R87: 369.5 | S87: 369.5 | T87: 369.5 | U87: 369.5 | V87: 369.5 | W87: 369.5 | X87: 369.5 | Y87: 369.5 | Z87: 369.5 | AA87: 369.5 | AB87: 369.5 | AC87: 369.5 | AD87: 369.5 | AE87: 369.5 | AF87: 369.5 | AG87: 369.5 | AH87: 369.5 | AI87: 369.5 | AJ87: 369.5 | AK87: 369.5 | AL87: 369.5 | AM87: 369.5 | AN87: 369.5 | AO87: 369.5 | AP87: 369.5 | AQ87: 369.5 | AR87: 369.5 | AS87: 369.5 | AT87: 369.5 | AU87: 369.5 | AV87: 369.5
C88: Less: Opening Balance | J88: =J91 -> 0 | K88: =K91 -> 241.6666667 | L88: 369.5 | M88: 369.5 | N88: 369.5 | O88: 369.5 | P88: 369.5 | Q88: 369.5 | R88: 369.5 | S88: 369.5 | T88: 369.5 | U88: 369.5 | V88: 369.5 | W88: 369.5 | X88: 369.5 | Y88: 369.5 | Z88: 369.5 | AA88: 369.5 | AB88: 369.5 | AC88: 369.5 | AD88: 369.5 | AE88: 369.5 | AF88: 369.5 | AG88: 369.5 | AH88: 369.5 | AI88: =AI91 -> 369.5 | AJ88: 369.5 | AK88: 369.5 | AL88: 369.5 | AM88: 369.5 | AN88: 369.5 | AO88: 369.5 | AP88: 369.5 | AQ88: 369.5 | AR88: 369.5 | AS88: 369.5 | AT88: 369.5 | AU88: 369.5 | AV88: 369.5
C89: Remaining Equity Funding | J89: =J87-J88 -> 369.5 | K89: =K87-K88 -> 127.8333333 | L89: 0 | M89: 0 | N89: 0 | O89: 0 | P89: 0 | Q89: 0 | R89: 0 | S89: 0 | T89: 0 | U89: 0 | V89: 0 | W89: 0 | X89: 0 | Y89: 0 | Z89: 0 | AA89: 0 | AB89: 0 | AC89: 0 | AD89: 0 | AE89: 0 | AF89: 0 | AG89: 0 | AH89: 0 | AI89: =AI87-AI88 -> 0 | AJ89: 0 | AK89: 0 | AL89: 0 | AM89: 0 | AN89: 0 | AO89: 0 | AP89: 0 | AQ89: 0 | AR89: 0 | AS89: 0 | AT89: 0 | AU89: 0 | AV89: 0
C91: Opening Balance | J91: =I93 -> 0 | K91: =J93 -> 241.6666667 | L91: 369.5 | M91: 369.5 | N91: 369.5 | O91: 369.5 | P91: 369.5 | Q91: 369.5 | R91: 369.5 | S91: 369.5 | T91: 369.5 | U91: 369.5 | V91: 369.5 | W91: 369.5 | X91: 369.5 | Y91: 369.5 | Z91: 369.5 | AA91: 369.5 | AB91: 369.5 | AC91: 369.5 | AD91: 369.5 | AE91: 369.5 | AF91: 369.5 | AG91: 369.5 | AH91: 369.5 | AI91: =AH93 -> 369.5 | AJ91: =AI93 -> 369.5 | AK91: =AJ93 -> 369.5 | AL91: =AK93 -> 369.5 | AM91: =AL93 -> 369.5 | AN91: =AM93 -> 369.5 | AO91: =AN93 -> 369.5 | AP91: =AO93 -> 369.5 | AQ91: =AP93 -> 369.5 | AR91: =AQ93 -> 369.5 | AS91: =AR93 -> 369.5 | AT91: =AS93 -> 369.5 | AU91: =AT93 -> 369.5 | AV91: =AU93 -> 369.5
C92: Add: Equity Funding | J92: =MIN(J89,J85) -> 241.6666667 | K92: =MIN(K89,K85) -> 127.8333333 | L92: 0 | M92: 0 | N92: 0 | O92: 0 | P92: 0 | Q92: 0 | R92: 0 | S92: 0 | T92: 0 | U92: 0 | V92: 0 | W92: 0 | X92: 0 | Y92: 0 | Z92: 0 | AA92: 0 | AB92: 0 | AC92: 0 | AD92: 0 | AE92: 0 | AF92: 0 | AG92: 0 | AH92: 0 | AI92: =MIN(AI89,AI85) -> 0 | AJ92: 0 | AK92: 0 | AL92: 0 | AM92: 0 | AN92: 0 | AO92: 0 | AP92: 0 | AQ92: 0 | AR92: 0 | AS92: 0 | AT92: 0 | AU92: 0 | AV92: 0
C93: Closing Balance | J93: =J91+J92 -> 241.6666667 | K93: =K91+K92 -> 369.5 | L93: 369.5 | M93: 369.5 | N93: 369.5 | O93: 369.5 | P93: 369.5 | Q93: 369.5 | R93: 369.5 | S93: 369.5 | T93: 369.5 | U93: 369.5 | V93: 369.5 | W93: 369.5 | X93: 369.5 | Y93: 369.5 | Z93: 369.5 | AA93: 369.5 | AB93: 369.5 | AC93: 369.5 | AD93: 369.5 | AE93: 369.5 | AF93: 369.5 | AG93: 369.5 | AH93: 369.5 | AI93: =AI91+AI92 -> 369.5 | AJ93: 369.5 | AK93: 369.5 | AL93: 369.5 | AM93: 369.5 | AN93: 369.5 | AO93: 369.5 | AP93: 369.5 | AQ93: 369.5 | AR93: 369.5 | AS93: 369.5 | AT93: 369.5 | AU93: 369.5 | AV93: 369.5
C95: Left-Over for Pro-Rata | J95: =J85-J92 -> 0 | K95: =K85-K92 -> 113.8333333 | L95: 241.6666667 | M95: 0 | N95: 0 | O95: 0 | P95: 0 | Q95: 0 | R95: 0 | S95: 0 | T95: 0 | U95: 0 | V95: 0 | W95: 0 | X95: 0 | Y95: 0 | Z95: 0 | AA95: 0 | AB95: 0 | AC95: 0 | AD95: 0 | AE95: 0 | AF95: 0 | AG95: 0 | AH95: 0 | AI95: =AI85-AI92 -> 0 | AJ95: 0 | AK95: 0 | AL95: 0 | AM95: 0 | AN95: 0 | AO95: 0 | AP95: 0 | AQ95: 0 | AR95: 0 | AS95: 0 | AT95: 0 | AU95: 0 | AV95: 0
C97: Pro-Rata Equity | H97: =I70 -> 1 | J97: =$H$97*J95 -> 0 | K97: =$H$97*K95 -> 113.8333333 | L97: 241.6666667 | M97: 0 | N97: 0 | O97: 0 | P97: 0 | Q97: 0 | R97: 0 | S97: 0 | T97: 0 | U97: 0 | V97: 0 | W97: 0 | X97: 0 | Y97: 0 | Z97: 0 | AA97: 0 | AB97: 0 | AC97: 0 | AD97: 0 | AE97: 0 | AF97: 0 | AG97: 0 | AH97: 0 | AI97: =$H$97*AI95 -> 0 | AJ97: 0 | AK97: 0 | AL97: 0 | AM97: 0 | AN97: 0 | AO97: 0 | AP97: 0 | AQ97: 0 | AR97: 0 | AS97: 0 | AT97: 0 | AU97: 0 | AV97: 0
C98: Pro-Rata Debt | H98: =I71 -> FALSE | J98: =J95*$H$98 -> 0 | K98: =K95*$H$98 -> 0 | L98: 0 | M98: 0 | N98: 0 | O98: 0 | P98: 0 | Q98: 0 | R98: 0 | S98: 0 | T98: 0 | U98: 0 | V98: 0 | W98: 0 | X98: 0 | Y98: 0 | Z98: 0 | AA98: 0 | AB98: 0 | AC98: 0 | AD98: 0 | AE98: 0 | AF98: 0 | AG98: 0 | AH98: 0 | AI98: =AI95*$H$98 -> 0 | AJ98: 0 | AK98: 0 | AL98: 0 | AM98: 0 | AN98: 0 | AO98: 0 | AP98: 0 | AQ98: 0 | AR98: 0 | AS98: 0 | AT98: 0 | AU98: 0 | AV98: 0
B100: Period by Period Sources
C101: Debt Funding | J101: =J98 -> 0 | K101: =K98 -> 0 | L101: 0 | M101: 0 | N101: 0 | O101: 0 | P101: 0 | Q101: 0 | R101: 0 | S101: 0 | T101: 0 | U101: 0 | V101: 0 | W101: 0 | X101: 0 | Y101: 0 | Z101: 0 | AA101: 0 | AB101: 0 | AC101: 0 | AD101: 0 | AE101: 0 | AF101: 0 | AG101: 0 | AH101: 0 | AI101: =AI98 -> 0 | AJ101: 0 | AK101: 0 | AL101: 0 | AM101: 0 | AN101: 0 | AO101: 0 | AP101: 0 | AQ101: 0 | AR101: 0 | AS101: 0 | AT101: 0 | AU101: 0 | AV101: 0
C102: Equity Funding | J102: =J97+J92 -> 241.6666667 | K102: =K97+K92 -> 241.6666667 | L102: 241.6666667 | M102: 0 | N102: 0 | O102: 0 | P102: 0 | Q102: 0 | R102: 0 | S102: 0 | T102: 0 | U102: 0 | V102: 0 | W102: 0 | X102: 0 | Y102: 0 | Z102: 0 | AA102: 0 | AB102: 0 | AC102: 0 | AD102: 0 | AE102: 0 | AF102: 0 | AG102: 0 | AH102: 0 | AI102: =AI97+AI92 -> 0 | AJ102: 0 | AK102: 0 | AL102: 0 | AM102: 0 | AN102: 0 | AO102: 0 | AP102: 0 | AQ102: 0 | AR102: 0 | AS102: 0 | AT102: 0 | AU102: 0 | AV102: 0
D103: Total Funding | J103: =SUM(J101:J102) -> 241.6666667 | K103: =SUM(K101:K102) -> 241.6666667 | L103: 241.6666667 | M103: 0 | N103: 0 | O103: 0 | P103: 0 | Q103: 0 | R103: 0 | S103: 0 | T103: 0 | U103: 0 | V103: 0 | W103: 0 | X103: 0 | Y103: 0 | Z103: 0 | AA103: 0 | AB103: 0 | AC103: 0 | AD103: 0 | AE103: 0 | AF103: 0 | AG103: 0 | AH103: 0 | AI103: =SUM(AI101:AI102) -> 0 | AJ103: 0 | AK103: 0 | AL103: 0 | AM103: 0 | AN103: 0 | AO103: 0 | AP103: 0 | AQ103: 0 | AR103: 0 | AS103: 0 | AT103: 0 | AU103: 0 | AV103: 0
A106: Debt Balance
C107: Opening Balance | J107: =I110 -> 0 | K107: 0 | L107: 0 | M107: 0 | N107: 0 | O107: 0 | P107: 0 | Q107: 0 | R107: 0 | S107: 0 | T107: 0 | U107: 0 | V107: 0 | W107: 0 | X107: 0 | Y107: 0 | Z107: 0 | AA107: 0 | AB107: 0 | AC107: 0 | AD107: 0 | AE107: 0 | AF107: 0 | AG107: 0 | AH107: 0 | AI107: =AH110 -> 0 | AJ107: =AI110 -> 0 | AK107: =AJ110 -> 0 | AL107: =AK110 -> 0 | AM107: =AL110 -> 0 | AN107: =AM110 -> 0 | AO107: =AN110 -> 0 | AP107: =AO110 -> 0 | AQ107: =AP110 -> 0 | AR107: =AQ110 -> 0 | AS107: =AR110 -> 0 | AT107: =AS110 -> 0 | AU107: =AT110 -> 0 | AV107: =AU110 -> 0
C108: Add: Funding | J108: =J101 -> 0 | K108: 0 | L108: 0 | M108: 0 | N108: 0 | O108: 0 | P108: 0 | Q108: 0 | R108: 0 | S108: 0 | T108: 0 | U108: 0 | V108: 0 | W108: 0 | X108: 0 | Y108: 0 | Z108: 0 | AA108: 0 | AB108: 0 | AC108: 0 | AD108: 0 | AE108: 0 | AF108: 0 | AG108: 0 | AH108: 0 | AI108: =AI101 -> 0 | AJ108: 0 | AK108: 0 | AL108: 0 | AM108: 0 | AN108: 0 | AO108: 0 | AP108: 0 | AQ108: 0 | AR108: 0 | AS108: 0 | AT108: 0 | AU108: 0 | AV108: 0
C109: Less: Repayment | J109: =J77-J114 -> 0 | K109: 0 | L109: 0 | M109: 0 | N109: 0 | O109: 0 | P109: 0 | Q109: 0 | R109: 0 | S109: 0 | T109: 0 | U109: 0 | V109: 0 | W109: 0 | X109: 0 | Y109: 0 | Z109: 0 | AA109: 0 | AB109: 0 | AC109: 0 | AD109: 0 | AE109: 0 | AF109: 0 | AG109: 0 | AH109: 0 | AI109: =AI77-AI114 -> 0 | AJ109: 0 | AK109: 0 | AL109: 0 | AM109: 0 | AN109: 0 | AO109: 0 | AP109: 0 | AQ109: 0 | AR109: 0 | AS109: 0 | AT109: 0 | AU109: 0 | AV109: 0
C110: Closing Balance | J110: =J107+J108-J109 -> 0 | K110: =K107+K108-K109 -> 0 | L110: 0 | M110: 0 | N110: 0 | O110: 0 | P110: 0 | Q110: 0 | R110: 0 | S110: 0 | T110: 0 | U110: 0 | V110: 0 | W110: 0 | X110: 0 | Y110: 0 | Z110: 0 | AA110: 0 | AB110: 0 | AC110: 0 | AD110: 0 | AE110: 0 | AF110: 0 | AG110: 0 | AH110: 0 | AI110: =AI107+AI108-AI109 -> 0 | AJ110: 0 | AK110: 0 | AL110: 0 | AM110: 0 | AN110: 0 | AO110: 0 | AP110: 0 | AQ110: 0 | AR110: 0 | AS110: 0 | AT110: 0 | AU110: 0 | AV110: 0
C111: Interest Rate | J111: =J78 -> 0.035 | K111: 0.035 | L111: 0.035 | M111: 0.04 | N111: 0.04 | O111: 0.04 | P111: 0.042 | Q111: 0.042 | R111: 0.042 | S111: 0.042 | T111: 0.044 | U111: 0.044 | V111: 0.044 | W111: 0.044 | X111: 0.044 | Y111: 0.044 | Z111: 0.044 | AA111: 0.044 | AB111: 0.044 | AC111: 0.044 | AD111: 0.044 | AE111: 0.044 | AF111: 0.044 | AG111: 0.044 | AH111: 0.044 | AI111: =AI78 -> 0.044 | AJ111: 0.044 | AK111: 0.044 | AL111: 0.044 | AM111: 0.044 | AN111: 0.044 | AO111: 0.044 | AP111: 0.044 | AQ111: 0.044 | AR111: 0.044 | AS111: 0.044 | AT111: 0.044 | AU111: 0.044 | AV111: 0.044
C113: Interest Cost | J113: =J111*J107 -> 0 | K113: 0 | L113: 0 | M113: 0 | N113: 0 | O113: 0 | P113: 0 | Q113: 0 | R113: 0 | S113: 0 | T113: 0 | U113: 0 | V113: 0 | W113: 0 | X113: 0 | Y113: 0 | Z113: 0 | AA113: 0 | AB113: 0 | AC113: 0 | AD113: 0 | AE113: 0 | AF113: 0 | AG113: 0 | AH113: 0 | AI113: =AI111*AI107 -> 0 | AJ113: 0 | AK113: 0 | AL113: 0 | AM113: 0 | AN113: 0 | AO113: 0 | AP113: 0 | AQ113: 0 | AR113: 0 | AS113: 0 | AT113: 0 | AU113: 0 | AV113: 0
C114: Interest Expense | J114: =J113*J4 -> 0 | K114: 0 | L114: 0 | M114: 0 | N114: 0 | O114: 0 | P114: 0 | Q114: 0 | R114: 0 | S114: 0 | T114: 0 | U114: 0 | V114: 0 | W114: 0 | X114: 0 | Y114: 0 | Z114: 0 | AA114: 0 | AB114: 0 | AC114: 0 | AD114: 0 | AE114: 0 | AF114: 0 | AG114: 0 | AH114: 0 | AI114: =AI113*AI4 -> 0 | AJ114: 0 | AK114: 0 | AL114: 0 | AM114: 0 | AN114: 0 | AO114: 0 | AP114: 0 | AQ114: 0 | AR114: 0 | AS114: 0 | AT114: 0 | AU114: 0 | AV114: 0
C115: Interest During Construction | J115: =J113*J3 -> 0 | K115: 0 | L115: 0 | M115: 0 | N115: 0 | O115: 0 | P115: 0 | Q115: 0 | R115: 0 | S115: 0 | T115: 0 | U115: 0 | V115: 0 | W115: 0 | X115: 0 | Y115: 0 | Z115: 0 | AA115: 0 | AB115: 0 | AC115: 0 | AD115: 0 | AE115: 0 | AF115: 0 | AG115: 0 | AH115: 0 | AI115: =AI113*AI3 -> 0 | AJ115: 0 | AK115: 0 | AL115: 0 | AM115: 0 | AN115: 0 | AO115: 0 | AP115: 0 | AQ115: 0 | AR115: 0 | AS115: 0 | AT115: 0 | AU115: 0 | AV115: 0
A117: DSRA
B118: Debt Service | J118: =J114+J109 -> 0 | K118: 0 | L118: 0 | M118: 0 | N118: 0 | O118: 0 | P118: 0 | Q118: 0 | R118: 0 | S118: 0 | T118: 0 | U118: 0 | V118: 0 | W118: 0 | X118: 0 | Y118: 0 | Z118: 0 | AA118: 0 | AB118: 0 | AC118: 0 | AD118: 0 | AE118: 0 | AF118: 0 | AG118: 0 | AH118: 0 | AI118: =AI114+AI109 -> 0 | AJ118: 0 | AK118: 0 | AL118: 0 | AM118: 0 | AN118: 0 | AO118: 0 | AP118: 0 | AQ118: 0 | AR118: 0 | AS118: 0 | AT118: 0 | AU118: 0 | AV118: 0
B119: Required DSRA | G119: =F36 -> 0.5 | J119: =K118*$G$119 -> 0 | K119: =L118*$G$119 -> 0 | L119: 0 | M119: 0 | N119: 0 | O119: 0 | P119: 0 | Q119: 0 | R119: 0 | S119: 0 | T119: 0 | U119: 0 | V119: 0 | W119: 0 | X119: 0 | Y119: 0 | Z119: 0 | AA119: 0 | AB119: 0 | AC119: 0 | AD119: 0 | AE119: 0 | AF119: 0 | AG119: 0 | AH119: 0 | AI119: =AJ118*$G$119 -> 0 | AJ119: =AK118*$G$119 -> 0 | AK119: =AL118*$G$119 -> 0 | AL119: =AM118*$G$119 -> 0 | AM119: =AN118*$G$119 -> 0 | AN119: =AO118*$G$119 -> 0 | AO119: =AP118*$G$119 -> 0 | AP119: =AQ118*$G$119 -> 0 | AQ119: =AR118*$G$119 -> 0 | AR119: =AS118*$G$119 -> 0 | AS119: =AT118*$G$119 -> 0 | AT119: =AU118*$G$119 -> 0 | AU119: =AV118*$G$119 -> 0 | AV119: =AW118*$G$119 -> 0
B120: Less: Opening DSRA Balance | J120: =J123 -> 0 | K120: =K123 -> 0 | L120: 0 | M120: 0 | N120: 0 | O120: 0 | P120: 0 | Q120: 0 | R120: 0 | S120: 0 | T120: 0 | U120: 0 | V120: 0 | W120: 0 | X120: 0 | Y120: 0 | Z120: 0 | AA120: 0 | AB120: 0 | AC120: 0 | AD120: 0 | AE120: 0 | AF120: 0 | AG120: 0 | AH120: 0 | AI120: =AI123 -> 0 | AJ120: 0 | AK120: 0 | AL120: 0 | AM120: 0 | AN120: 0 | AO120: 0 | AP120: 0 | AQ120: 0 | AR120: 0 | AS120: 0 | AT120: 0 | AU120: 0 | AV120: 0
B121: Net Funding Required | J121: =J119-J120 -> 0 | K121: =K119-K120 -> 0 | L121: 0 | M121: 0 | N121: 0 | O121: 0 | P121: 0 | Q121: 0 | R121: 0 | S121: 0 | T121: 0 | U121: 0 | V121: 0 | W121: 0 | X121: 0 | Y121: 0 | Z121: 0 | AA121: 0 | AB121: 0 | AC121: 0 | AD121: 0 | AE121: 0 | AF121: 0 | AG121: 0 | AH121: 0 | AI121: =AI119-AI120 -> 0 | AJ121: 0 | AK121: 0 | AL121: 0 | AM121: 0 | AN121: 0 | AO121: 0 | AP121: 0 | AQ121: 0 | AR121: 0 | AS121: 0 | AT121: 0 | AU121: 0 | AV121: 0
B123: Opening Balance | J123: =I126 -> 0 | K123: =J126 -> 0 | L123: 0 | M123: 0 | N123: 0 | O123: 0 | P123: 0 | Q123: 0 | R123: 0 | S123: 0 | T123: 0 | U123: 0 | V123: 0 | W123: 0 | X123: 0 | Y123: 0 | Z123: 0 | AA123: 0 | AB123: 0 | AC123: 0 | AD123: 0 | AE123: 0 | AF123: 0 | AG123: 0 | AH123: 0 | AI123: =AH126 -> 0 | AJ123: =AI126 -> 0 | AK123: =AJ126 -> 0 | AL123: =AK126 -> 0 | AM123: =AL126 -> 0 | AN123: =AM126 -> 0 | AO123: =AN126 -> 0 | AP123: =AO126 -> 0 | AQ123: =AP126 -> 0 | AR123: =AQ126 -> 0 | AS123: =AR126 -> 0 | AT123: =AS126 -> 0 | AU123: =AT126 -> 0 | AV123: =AU126 -> 0
B124: Add: DSRA Funded During Construction | J124: =J121*J3 -> 0 | K124: 0 | L124: 0 | M124: 0 | N124: 0 | O124: 0 | P124: 0 | Q124: 0 | R124: 0 | S124: 0 | T124: 0 | U124: 0 | V124: 0 | W124: 0 | X124: 0 | Y124: 0 | Z124: 0 | AA124: 0 | AB124: 0 | AC124: 0 | AD124: 0 | AE124: 0 | AF124: 0 | AG124: 0 | AH124: 0 | AI124: =AI121*AI3 -> 0 | AJ124: 0 | AK124: 0 | AL124: 0 | AM124: 0 | AN124: 0 | AO124: 0 | AP124: 0 | AQ124: 0 | AR124: 0 | AS124: 0 | AT124: 0 | AU124: 0 | AV124: 0
B125: Less: DSRA Changes During Operation | J125: =J121*J4 -> 0 | K125: 0 | L125: 0 | M125: 0 | N125: 0 | O125: 0 | P125: 0 | Q125: 0 | R125: 0 | S125: 0 | T125: 0 | U125: 0 | V125: 0 | W125: 0 | X125: 0 | Y125: 0 | Z125: 0 | AA125: 0 | AB125: 0 | AC125: 0 | AD125: 0 | AE125: 0 | AF125: 0 | AG125: 0 | AH125: 0 | AI125: =AI121*AI4 -> 0 | AJ125: 0 | AK125: 0 | AL125: 0 | AM125: 0 | AN125: 0 | AO125: 0 | AP125: 0 | AQ125: 0 | AR125: 0 | AS125: 0 | AT125: 0 | AU125: 0 | AV125: 0
B126: Closing Balance | J126: =J123+J124+J125 -> 0 | K126: =K123+K124+K125 -> 0 | L126: 0 | M126: 0 | N126: 0 | O126: 0 | P126: 0 | Q126: 0 | R126: 0 | S126: 0 | T126: 0 | U126: 0 | V126: 0 | W126: 0 | X126: 0 | Y126: 0 | Z126: 0 | AA126: 0 | AB126: 0 | AC126: 0 | AD126: 0 | AE126: 0 | AF126: 0 | AG126: 0 | AH126: 0 | AI126: =AI123+AI124+AI125 -> 0 | AJ126: 0 | AK126: 0 | AL126: 0 | AM126: 0 | AN126: 0 | AO126: 0 | AP126: 0 | AQ126: 0 | AR126: 0 | AS126: 0 | AT126: 0 | AU126: 0 | AV126: 0
A128: Profit and Loss
C129: IDC Balance | J129: =I129+J115 -> 0 | K129: =J129+K115 -> 0 | L129: 0 | M129: 0 | N129: 0 | O129: 0 | P129: 0 | Q129: 0 | R129: 0 | S129: 0 | T129: 0 | U129: 0 | V129: 0 | W129: 0 | X129: 0 | Y129: 0 | Z129: 0 | AA129: 0 | AB129: 0 | AC129: 0 | AD129: 0 | AE129: 0 | AF129: 0 | AG129: 0 | AH129: 0 | AI129: =AH129+AI115 -> 0 | AJ129: =AI129+AJ115 -> 0 | AK129: =AJ129+AK115 -> 0 | AL129: =AK129+AL115 -> 0 | AM129: =AL129+AM115 -> 0 | AN129: =AM129+AN115 -> 0 | AO129: =AN129+AO115 -> 0 | AP129: =AO129+AP115 -> 0 | AQ129: =AP129+AQ115 -> 0 | AR129: =AQ129+AR115 -> 0 | AS129: =AR129+AS115 -> 0 | AT129: =AS129+AT115 -> 0 | AU129: =AT129+AU115 -> 0 | AV129: =AU129+AV115 -> 0
C130: Depreciation Rate | J130: =J49/J46 -> 0 | K130: 0 | L130: 0 | M130: 0.05 | N130: 0.05 | O130: 0.05 | P130: 0.05 | Q130: 0.05 | R130: 0.05 | S130: 0.05 | T130: 0.05 | U130: 0.05 | V130: 0.05 | W130: 0.05 | X130: 0.05 | Y130: 0.05 | Z130: 0.05 | AA130: 0.05 | AB130: 0.05 | AC130: 0.05 | AD130: 0.05 | AE130: 0.05 | AF130: 0.05 | AG130: 0 | AH130: 0 | AI130: =AI49/AI46 -> 0 | AJ130: 0 | AK130: 0 | AL130: 0 | AM130: 0 | AN130: 0 | AO130: 0 | AP130: 0 | AQ130: 0 | AR130: 0 | AS130: 0 | AT130: 0 | AU130: 0 | AV130: 0
C131: Depreciation on IDC | J131: =J129*J130 -> 0 | K131: =K129*K130 -> 0 | L131: 0 | M131: 0 | N131: 0 | O131: 0 | P131: 0 | Q131: 0 | R131: 0 | S131: 0 | T131: 0 | U131: 0 | V131: 0 | W131: 0 | X131: 0 | Y131: 0 | Z131: 0 | AA131: 0 | AB131: 0 | AC131: 0 | AD131: 0 | AE131: 0 | AF131: 0 | AG131: 0 | AH131: 0 | AI131: =AI129*AI130 -> 0 | AJ131: 0 | AK131: 0 | AL131: 0 | AM131: 0 | AN131: 0 | AO131: 0 | AP131: 0 | AQ131: 0 | AR131: 0 | AS131: 0 | AT131: 0 | AU131: 0 | AV131: 0
C132: Accumulated IDC Depreciation | J132: =I132+J131 -> 0 | K132: =J132+K131 -> 0 | L132: 0 | M132: 0 | N132: 0 | O132: 0 | P132: 0 | Q132: 0 | R132: 0 | S132: 0 | T132: 0 | U132: 0 | V132: 0 | W132: 0 | X132: 0 | Y132: 0 | Z132: 0 | AA132: 0 | AB132: 0 | AC132: 0 | AD132: 0 | AE132: 0 | AF132: 0 | AG132: 0 | AH132: 0 | AI132: =AH132+AI131 -> 0 | AJ132: =AI132+AJ131 -> 0 | AK132: =AJ132+AK131 -> 0 | AL132: =AK132+AL131 -> 0 | AM132: =AL132+AM131 -> 0 | AN132: =AM132+AN131 -> 0 | AO132: =AN132+AO131 -> 0 | AP132: =AO132+AP131 -> 0 | AQ132: =AP132+AQ131 -> 0 | AR132: =AQ132+AR131 -> 0 | AS132: =AR132+AS131 -> 0 | AT132: =AS132+AT131 -> 0 | AU132: =AT132+AU131 -> 0 | AV132: =AU132+AV131 -> 0
C133: Net IDC Balance | J133: =J129-J132 -> 0 | K133: =K129-K132 -> 0 | L133: 0 | M133: 0 | N133: 0 | O133: 0 | P133: 0 | Q133: 0 | R133: 0 | S133: 0 | T133: 0 | U133: 0 | V133: 0 | W133: 0 | X133: 0 | Y133: 0 | Z133: 0 | AA133: 0 | AB133: 0 | AC133: 0 | AD133: 0 | AE133: 0 | AF133: 0 | AG133: 0 | AH133: 0 | AI133: =AI129-AI132 -> 0 | AJ133: 0 | AK133: 0 | AL133: 0 | AM133: 0 | AN133: 0 | AO133: 0 | AP133: 0 | AQ133: 0 | AR133: 0 | AS133: 0 | AT133: 0 | AU133: 0 | AV133: 0
C135: EBITDA | J135: =J40 -> 0 | K135: 0 | L135: 0 | M135: 100 | N135: 105.7371263 | O135: 111.8033989 | P135: 118.2177011 | Q135: 125 | R135: 117.2793196 | S135: 110.0355105 | T135: 103.2391185 | U135: 96.86250859 | V135: 90.87975285 | W135: 85.26652466 | X135: 80 | Y135: 80 | Z135: 80 | AA135: 80 | AB135: 80 | AC135: 80 | AD135: 80 | AE135: 80 | AF135: 80 | AG135: 0 | AH135: 0 | AI135: =AI40 -> 0 | AJ135: 0 | AK135: 0 | AL135: 0 | AM135: 0 | AN135: 0 | AO135: 0 | AP135: 0 | AQ135: 0 | AR135: 0 | AS135: 0 | AT135: 0 | AU135: 0 | AV135: 0
C136: Less: Depreciation | J136: =J131+J49 -> 0 | K136: 0 | L136: 0 | M136: 36.25 | N136: 36.25 | O136: 36.25 | P136: 36.25 | Q136: 36.25 | R136: 36.25 | S136: 36.25 | T136: 36.25 | U136: 36.25 | V136: 36.25 | W136: 36.25 | X136: 36.25 | Y136: 36.25 | Z136: 36.25 | AA136: 36.25 | AB136: 36.25 | AC136: 36.25 | AD136: 36.25 | AE136: 36.25 | AF136: 36.25 | AG136: 0 | AH136: 0 | AI136: =AI131+AI49 -> 0 | AJ136: 0 | AK136: 0 | AL136: 0 | AM136: 0 | AN136: 0 | AO136: 0 | AP136: 0 | AQ136: 0 | AR136: 0 | AS136: 0 | AT136: 0 | AU136: 0 | AV136: 0
C137: EBIT | J137: =J135-J136 -> 0 | K137: =K135-K136 -> 0 | L137: 0 | M137: 63.75 | N137: 69.48712634 | O137: 75.55339887 | P137: 81.96770113 | Q137: 88.75 | R137: 81.02931964 | S137: 73.78551051 | T137: 66.98911847 | U137: 60.61250859 | V137: 54.62975285 | W137: 49.01652466 | X137: 43.75 | Y137: 43.75 | Z137: 43.75 | AA137: 43.75 | AB137: 43.75 | AC137: 43.75 | AD137: 43.75 | AE137: 43.75 | AF137: 43.75 | AG137: 0 | AH137: 0 | AI137: =AI135-AI136 -> 0 | AJ137: 0 | AK137: 0 | AL137: 0 | AM137: 0 | AN137: 0 | AO137: 0 | AP137: 0 | AQ137: 0 | AR137: 0 | AS137: 0 | AT137: 0 | AU137: 0 | AV137: 0
C138: Less: Interest Expense | J138: =J114 -> 0 | K138: =K114 -> 0 | L138: 0 | M138: 0 | N138: 0 | O138: 0 | P138: 0 | Q138: 0 | R138: 0 | S138: 0 | T138: 0 | U138: 0 | V138: 0 | W138: 0 | X138: 0 | Y138: 0 | Z138: 0 | AA138: 0 | AB138: 0 | AC138: 0 | AD138: 0 | AE138: 0 | AF138: 0 | AG138: 0 | AH138: 0 | AI138: =AI114 -> 0 | AJ138: 0 | AK138: 0 | AL138: 0 | AM138: 0 | AN138: 0 | AO138: 0 | AP138: 0 | AQ138: 0 | AR138: 0 | AS138: 0 | AT138: 0 | AU138: 0 | AV138: 0
C139: EBT | J139: =J137-J138 -> 0 | K139: =K137-K138 -> 0 | L139: 0 | M139: 63.75 | N139: 69.48712634 | O139: 75.55339887 | P139: 81.96770113 | Q139: 88.75 | R139: 81.02931964 | S139: 73.78551051 | T139: 66.98911847 | U139: 60.61250859 | V139: 54.62975285 | W139: 49.01652466 | X139: 43.75 | Y139: 43.75 | Z139: 43.75 | AA139: 43.75 | AB139: 43.75 | AC139: 43.75 | AD139: 43.75 | AE139: 43.75 | AF139: 43.75 | AG139: 0 | AH139: 0 | AI139: =AI137-AI138 -> 0 | AJ139: 0 | AK139: 0 | AL139: 0 | AM139: 0 | AN139: 0 | AO139: 0 | AP139: 0 | AQ139: 0 | AR139: 0 | AS139: 0 | AT139: 0 | AU139: 0 | AV139: 0
C140: Opening NOL | J140: =I143 -> 0 | K140: =J143 -> 0 | L140: 0 | M140: 0 | N140: 0 | O140: 0 | P140: 0 | Q140: 0 | R140: 0 | S140: 0 | T140: 0 | U140: 0 | V140: 0 | W140: 0 | X140: 0 | Y140: 0 | Z140: 0 | AA140: 0 | AB140: 0 | AC140: 0 | AD140: 0 | AE140: 0 | AF140: 0 | AG140: 0 | AH140: 0 | AI140: =AH143 -> 0 | AJ140: =AI143 -> 0 | AK140: =AJ143 -> 0 | AL140: =AK143 -> 0 | AM140: =AL143 -> 0 | AN140: =AM143 -> 0 | AO140: =AN143 -> 0 | AP140: =AO143 -> 0 | AQ140: =AP143 -> 0 | AR140: =AQ143 -> 0 | AS140: =AR143 -> 0 | AT140: =AS143 -> 0 | AU140: =AT143 -> 0 | AV140: =AU143 -> 0
C141: Add: Accrued Tax Loss | J141: =MAX(-J139,0) -> 0 | K141: =MAX(-K139,0) -> 0 | L141: 0 | M141: 0 | N141: 0 | O141: 0 | P141: 0 | Q141: 0 | R141: 0 | S141: 0 | T141: 0 | U141: 0 | V141: 0 | W141: 0 | X141: 0 | Y141: 0 | Z141: 0 | AA141: 0 | AB141: 0 | AC141: 0 | AD141: 0 | AE141: 0 | AF141: 0 | AG141: 0 | AH141: 0 | AI141: =MAX(-AI139,0) -> 0 | AJ141: 0 | AK141: 0 | AL141: 0 | AM141: 0 | AN141: 0 | AO141: 0 | AP141: 0 | AQ141: 0 | AR141: 0 | AS141: 0 | AT141: 0 | AU141: 0 | AV141: 0
C142: Less: NOL Used | J142: =MIN(J140,MAX(J139,0)) -> 0 | K142: =MIN(K140,MAX(K139,0)) -> 0 | L142: 0 | M142: 0 | N142: 0 | O142: 0 | P142: 0 | Q142: 0 | R142: 0 | S142: 0 | T142: 0 | U142: 0 | V142: 0 | W142: 0 | X142: 0 | Y142: 0 | Z142: 0 | AA142: 0 | AB142: 0 | AC142: 0 | AD142: 0 | AE142: 0 | AF142: 0 | AG142: 0 | AH142: 0 | AI142: =MIN(AI140,MAX(AI139,0)) -> 0 | AJ142: 0 | AK142: 0 | AL142: 0 | AM142: 0 | AN142: 0 | AO142: 0 | AP142: 0 | AQ142: 0 | AR142: 0 | AS142: 0 | AT142: 0 | AU142: 0 | AV142: 0
C143: Closing NOL | J143: =J140+J141-J142 -> 0 | K143: =K140+K141-K142 -> 0 | L143: 0 | M143: 0 | N143: 0 | O143: 0 | P143: 0 | Q143: 0 | R143: 0 | S143: 0 | T143: 0 | U143: 0 | V143: 0 | W143: 0 | X143: 0 | Y143: 0 | Z143: 0 | AA143: 0 | AB143: 0 | AC143: 0 | AD143: 0 | AE143: 0 | AF143: 0 | AG143: 0 | AH143: 0 | AI143: =AI140+AI141-AI142 -> 0 | AJ143: 0 | AK143: 0 | AL143: 0 | AM143: 0 | AN143: 0 | AO143: 0 | AP143: 0 | AQ143: 0 | AR143: 0 | AS143: 0 | AT143: 0 | AU143: 0 | AV143: 0
C144: EBT after NOL | J144: =J139+J141-J142 -> 0 | K144: =K139+K141-K142 -> 0 | L144: 0 | M144: 63.75 | N144: 69.48712634 | O144: 75.55339887 | P144: 81.96770113 | Q144: 88.75 | R144: 81.02931964 | S144: 73.78551051 | T144: 66.98911847 | U144: 60.61250859 | V144: 54.62975285 | W144: 49.01652466 | X144: 43.75 | Y144: 43.75 | Z144: 43.75 | AA144: 43.75 | AB144: 43.75 | AC144: 43.75 | AD144: 43.75 | AE144: 43.75 | AF144: 43.75 | AG144: 0 | AH144: 0 | AI144: =AI139+AI141-AI142 -> 0 | AJ144: 0 | AK144: 0 | AL144: 0 | AM144: 0 | AN144: 0 | AO144: 0 | AP144: 0 | AQ144: 0 | AR144: 0 | AS144: 0 | AT144: 0 | AU144: 0 | AV144: 0
C145: Taxes | H145: =F21 -> 0.21 | J145: =$H$145*J144 -> 0 | K145: =$H$145*K144 -> 0 | L145: 0 | M145: 13.3875 | N145: 14.59229653 | O145: 15.86621376 | P145: 17.21321724 | Q145: 18.6375 | R145: 17.01615712 | S145: 15.49495721 | T145: 14.06771488 | U145: 12.7286268 | V145: 11.4722481 | W145: 10.29347018 | X145: 9.1875 | Y145: 9.1875 | Z145: 9.1875 | AA145: 9.1875 | AB145: 9.1875 | AC145: 9.1875 | AD145: 9.1875 | AE145: 9.1875 | AF145: 9.1875 | AG145: 0 | AH145: 0 | AI145: =$H$145*AI144 -> 0 | AJ145: 0 | AK145: 0 | AL145: 0 | AM145: 0 | AN145: 0 | AO145: 0 | AP145: 0 | AQ145: 0 | AR145: 0 | AS145: 0 | AT145: 0 | AU145: 0 | AV145: 0
C146: Net Income | J146: =J144-J145 -> 0 | K146: =K144-K145 -> 0 | L146: 0 | M146: 50.3625 | N146: 54.89482981 | O146: 59.68718511 | P146: 64.75448389 | Q146: 70.1125 | R146: 64.01316251 | S146: 58.29055331 | T146: 52.92140359 | U146: 47.88388179 | V146: 43.15750475 | W146: 38.72305448 | X146: 34.5625 | Y146: 34.5625 | Z146: 34.5625 | AA146: 34.5625 | AB146: 34.5625 | AC146: 34.5625 | AD146: 34.5625 | AE146: 34.5625 | AF146: 34.5625 | AG146: 0 | AH146: 0 | AI146: =AI144-AI145 -> 0 | AJ146: 0 | AK146: 0 | AL146: 0 | AM146: 0 | AN146: 0 | AO146: 0 | AP146: 0 | AQ146: 0 | AR146: 0 | AS146: 0 | AT146: 0 | AU146: 0 | AV146: 0
A148: Cash Flow Waterfall
C149: EBITDA | J149: =J135 -> 0 | K149: =K135 -> 0 | L149: 0 | M149: 100 | N149: 105.7371263 | O149: 111.8033989 | P149: 118.2177011 | Q149: 125 | R149: 117.2793196 | S149: 110.0355105 | T149: 103.2391185 | U149: 96.86250859 | V149: 90.87975285 | W149: 85.26652466 | X149: 80 | Y149: 80 | Z149: 80 | AA149: 80 | AB149: 80 | AC149: 80 | AD149: 80 | AE149: 80 | AF149: 80 | AG149: 0 | AH149: 0 | AI149: =AI135 -> 0 | AJ149: 0 | AK149: 0 | AL149: 0 | AM149: 0 | AN149: 0 | AO149: 0 | AP149: 0 | AQ149: 0 | AR149: 0 | AS149: 0 | AT149: 0 | AU149: 0 | AV149: 0
C150: Less: Taxes | J150: =J145 -> 0 | K150: =K145 -> 0 | L150: 0 | M150: 13.3875 | N150: 14.59229653 | O150: 15.86621376 | P150: 17.21321724 | Q150: 18.6375 | R150: 17.01615712 | S150: 15.49495721 | T150: 14.06771488 | U150: 12.7286268 | V150: 11.4722481 | W150: 10.29347018 | X150: 9.1875 | Y150: 9.1875 | Z150: 9.1875 | AA150: 9.1875 | AB150: 9.1875 | AC150: 9.1875 | AD150: 9.1875 | AE150: 9.1875 | AF150: 9.1875 | AG150: 0 | AH150: 0 | AI150: =AI145 -> 0 | AJ150: 0 | AK150: 0 | AL150: 0 | AM150: 0 | AN150: 0 | AO150: 0 | AP150: 0 | AQ150: 0 | AR150: 0 | AS150: 0 | AT150: 0 | AU150: 0 | AV150: 0
C151: CFADS
C152: Less: Interest Expense | J152: =J138 -> 0 | K152: =K138 -> 0 | L152: 0 | M152: 0 | N152: 0 | O152: 0 | P152: 0 | Q152: 0 | R152: 0 | S152: 0 | T152: 0 | U152: 0 | V152: 0 | W152: 0 | X152: 0 | Y152: 0 | Z152: 0 | AA152: 0 | AB152: 0 | AC152: 0 | AD152: 0 | AE152: 0 | AF152: 0 | AG152: 0 | AH152: 0 | AI152: =AI138 -> 0 | AJ152: 0 | AK152: 0 | AL152: 0 | AM152: 0 | AN152: 0 | AO152: 0 | AP152: 0 | AQ152: 0 | AR152: 0 | AS152: 0 | AT152: 0 | AU152: 0 | AV152: 0
C153: Less: Repayment | J153: =J109 -> 0 | K153: 0 | L153: 0 | M153: 0 | N153: 0 | O153: 0 | P153: 0 | Q153: 0 | R153: 0 | S153: 0 | T153: 0 | U153: 0 | V153: 0 | W153: 0 | X153: 0 | Y153: 0 | Z153: 0 | AA153: 0 | AB153: 0 | AC153: 0 | AD153: 0 | AE153: 0 | AF153: 0 | AG153: 0 | AH153: 0 | AI153: =AI109 -> 0 | AJ153: 0 | AK153: 0 | AL153: 0 | AM153: 0 | AN153: 0 | AO153: 0 | AP153: 0 | AQ153: 0 | AR153: 0 | AS153: 0 | AT153: 0 | AU153: 0 | AV153: 0
C154: Net Cash Flow | J154: =J151-J152-J153 -> 0 | K154: =K151-K152-K153 -> 0 | L154: 0 | M154: 0 | N154: 0 | O154: 0 | P154: 0 | Q154: 0 | R154: 0 | S154: 0 | T154: 0 | U154: 0 | V154: 0 | W154: 0 | X154: 0 | Y154: 0 | Z154: 0 | AA154: 0 | AB154: 0 | AC154: 0 | AD154: 0 | AE154: 0 | AF154: 0 | AG154: 0 | AH154: 0 | AI154: =AI151-AI152-AI153 -> 0 | AJ154: 0 | AK154: 0 | AL154: 0 | AM154: 0 | AN154: 0 | AO154: 0 | AP154: 0 | AQ154: 0 | AR154: 0 | AS154: 0 | AT154: 0 | AU154: 0 | AV154: 0
C155: Less: Change in DSRA | J155: =J125 -> 0 | K155: =K125 -> 0 | L155: 0 | M155: 0 | N155: 0 | O155: 0 | P155: 0 | Q155: 0 | R155: 0 | S155: 0 | T155: 0 | U155: 0 | V155: 0 | W155: 0 | X155: 0 | Y155: 0 | Z155: 0 | AA155: 0 | AB155: 0 | AC155: 0 | AD155: 0 | AE155: 0 | AF155: 0 | AG155: 0 | AH155: 0 | AI155: =AI125 -> 0 | AJ155: 0 | AK155: 0 | AL155: 0 | AM155: 0 | AN155: 0 | AO155: 0 | AP155: 0 | AQ155: 0 | AR155: 0 | AS155: 0 | AT155: 0 | AU155: 0 | AV155: 0
C156: Less: Cash Flow Sweep
C157: Net Dividends | J157: =J154-J155-J156 -> 0 | K157: =K154-K155-K156 -> 0 | L157: 0 | M157: 0 | N157: 0 | O157: 0 | P157: 0 | Q157: 0 | R157: 0 | S157: 0 | T157: 0 | U157: 0 | V157: 0 | W157: 0 | X157: 0 | Y157: 0 | Z157: 0 | AA157: 0 | AB157: 0 | AC157: 0 | AD157: 0 | AE157: 0 | AF157: 0 | AG157: 0 | AH157: 0 | AI157: =AI154-AI155-AI156 -> 0 | AJ157: 0 | AK157: 0 | AL157: 0 | AM157: 0 | AN157: 0 | AO157: 0 | AP157: 0 | AQ157: 0 | AR157: 0 | AS157: 0 | AT157: 0 | AU157: 0 | AV157: 0
A159: Balance Sheet
B160: Assets
C161: DSRA | J161: =J126 -> 0 | K161: =K126 -> 0 | L161: 0 | M161: 0 | N161: 0 | O161: 0 | P161: 0 | Q161: 0 | R161: 0 | S161: 0 | T161: 0 | U161: 0 | V161: 0 | W161: 0 | X161: 0 | Y161: 0 | Z161: 0 | AA161: 0 | AB161: 0 | AC161: 0 | AD161: 0 | AE161: 0 | AF161: 0 | AG161: 0 | AH161: 0 | AI161: =AI126 -> 0 | AJ161: 0 | AK161: 0 | AL161: 0 | AM161: 0 | AN161: 0 | AO161: 0 | AP161: 0 | AQ161: 0 | AR161: 0 | AS161: 0 | AT161: 0 | AU161: 0 | AV161: 0
C162: Gross Plant | J162: =J46 -> 241.6666667 | K162: 483.3333333 | L162: 725 | M162: 725 | N162: 725 | O162: 725 | P162: 725 | Q162: 725 | R162: 725 | S162: 725 | T162: 725 | U162: 725 | V162: 725 | W162: 725 | X162: 725 | Y162: 725 | Z162: 725 | AA162: 725 | AB162: 725 | AC162: 725 | AD162: 725 | AE162: 725 | AF162: 725 | AG162: 725 | AH162: 725 | AI162: =AI46 -> 725 | AJ162: 725 | AK162: 725 | AL162: 725 | AM162: 725 | AN162: 725 | AO162: 725 | AP162: 725 | AQ162: 725 | AR162: 725 | AS162: 725 | AT162: 725 | AU162: 725 | AV162: 725
C163: Less: Accumulated Depreciation | J163: =-J47 -> 0 | K163: 0 | L163: 0 | M163: -36.25 | N163: -72.5 | O163: -108.75 | P163: -145 | Q163: -181.25 | R163: -217.5 | S163: -253.75 | T163: -290 | U163: -326.25 | V163: -362.5 | W163: -398.75 | X163: -435 | Y163: -471.25 | Z163: -507.5 | AA163: -543.75 | AB163: -580 | AC163: -616.25 | AD163: -652.5 | AE163: -688.75 | AF163: -725 | AG163: -725 | AH163: -725 | AI163: =-AI47 -> -725 | AJ163: -725 | AK163: -725 | AL163: -725 | AM163: -725 | AN163: -725 | AO163: -725 | AP163: -725 | AQ163: -725 | AR163: -725 | AS163: -725 | AT163: -725 | AU163: -725 | AV163: -725
C164: IDC Net Plant | J164: =J133 -> 0 | K164: =K133 -> 0 | L164: 0 | M164: 0 | N164: 0 | O164: 0 | P164: 0 | Q164: 0 | R164: 0 | S164: 0 | T164: 0 | U164: 0 | V164: 0 | W164: 0 | X164: 0 | Y164: 0 | Z164: 0 | AA164: 0 | AB164: 0 | AC164: 0 | AD164: 0 | AE164: 0 | AF164: 0 | AG164: 0 | AH164: 0 | AI164: =AI133 -> 0 | AJ164: 0 | AK164: 0 | AL164: 0 | AM164: 0 | AN164: 0 | AO164: 0 | AP164: 0 | AQ164: 0 | AR164: 0 | AS164: 0 | AT164: 0 | AU164: 0 | AV164: 0
D165: Total Assets | J165: =SUM(J161:J164) -> 241.6666667 | K165: =SUM(K161:K164) -> 483.3333333 | L165: 725 | M165: 688.75 | N165: 652.5 | O165: 616.25 | P165: 580 | Q165: 543.75 | R165: 507.5 | S165: 471.25 | T165: 435 | U165: 398.75 | V165: 362.5 | W165: 326.25 | X165: 290 | Y165: 253.75 | Z165: 217.5 | AA165: 181.25 | AB165: 145 | AC165: 108.75 | AD165: 72.5 | AE165: 36.25 | AF165: 0 | AG165: 0 | AH165: 0 | AI165: =SUM(AI161:AI164) -> 0 | AJ165: 0 | AK165: 0 | AL165: 0 | AM165: 0 | AN165: 0 | AO165: 0 | AP165: 0 | AQ165: 0 | AR165: 0 | AS165: 0 | AT165: 0 | AU165: 0 | AV165: 0
B167: Equity Balance
C168: Opening Balance | J168: =I172 -> 0 | K168: =J172 -> 241.6666667 | L168: 483.3333333 | M168: 725 | N168: 775.3625 | O168: 830.2573298 | P168: 889.9445149 | Q168: 954.6989988 | R168: 1024.811499 | S168: 1088.824661 | T168: 1147.115215 | U168: 1200.036618 | V168: 1247.9205 | W168: 1291.078005 | X168: 1329.801059 | Y168: 1364.363559 | Z168: 1398.926059 | AA168: 1433.488559 | AB168: 1468.051059 | AC168: 1502.613559 | AD168: 1537.176059 | AE168: 1571.738559 | AF168: 1606.301059 | AG168: 1640.863559 | AH168: 1640.863559 | AI168: =AH172 -> 1640.863559 | AJ168: =AI172 -> 1640.863559 | AK168: =AJ172 -> 1640.863559 | AL168: =AK172 -> 1640.863559 | AM168: =AL172 -> 1640.863559 | AN168: =AM172 -> 1640.863559 | AO168: =AN172 -> 1640.863559 | AP168: =AO172 -> 1640.863559 | AQ168: =AP172 -> 1640.863559 | AR168: =AQ172 -> 1640.863559 | AS168: =AR172 -> 1640.863559 | AT168: =AS172 -> 1640.863559 | AU168: =AT172 -> 1640.863559 | AV168: =AU172 -> 1640.863559
C169: Add: Funding | J169: =J102 -> 241.6666667 | K169: 241.6666667 | L169: 241.6666667 | M169: 0 | N169: 0 | O169: 0 | P169: 0 | Q169: 0 | R169: 0 | S169: 0 | T169: 0 | U169: 0 | V169: 0 | W169: 0 | X169: 0 | Y169: 0 | Z169: 0 | AA169: 0 | AB169: 0 | AC169: 0 | AD169: 0 | AE169: 0 | AF169: 0 | AG169: 0 | AH169: 0 | AI169: =AI102 -> 0 | AJ169: 0 | AK169: 0 | AL169: 0 | AM169: 0 | AN169: 0 | AO169: 0 | AP169: 0 | AQ169: 0 | AR169: 0 | AS169: 0 | AT169: 0 | AU169: 0 | AV169: 0
C170: Add: Net Income | J170: =J146 -> 0 | K170: =K146 -> 0 | L170: 0 | M170: 50.3625 | N170: 54.89482981 | O170: 59.68718511 | P170: 64.75448389 | Q170: 70.1125 | R170: 64.01316251 | S170: 58.29055331 | T170: 52.92140359 | U170: 47.88388179 | V170: 43.15750475 | W170: 38.72305448 | X170: 34.5625 | Y170: 34.5625 | Z170: 34.5625 | AA170: 34.5625 | AB170: 34.5625 | AC170: 34.5625 | AD170: 34.5625 | AE170: 34.5625 | AF170: 34.5625 | AG170: 0 | AH170: 0 | AI170: =AI146 -> 0 | AJ170: 0 | AK170: 0 | AL170: 0 | AM170: 0 | AN170: 0 | AO170: 0 | AP170: 0 | AQ170: 0 | AR170: 0 | AS170: 0 | AT170: 0 | AU170: 0 | AV170: 0
C171: Less: Dividends | J171: =-J157 -> 0 | K171: =-K157 -> 0 | L171: 0 | M171: 0 | N171: 0 | O171: 0 | P171: 0 | Q171: 0 | R171: 0 | S171: 0 | T171: 0 | U171: 0 | V171: 0 | W171: 0 | X171: 0 | Y171: 0 | Z171: 0 | AA171: 0 | AB171: 0 | AC171: 0 | AD171: 0 | AE171: 0 | AF171: 0 | AG171: 0 | AH171: 0 | AI171: =-AI157 -> 0 | AJ171: 0 | AK171: 0 | AL171: 0 | AM171: 0 | AN171: 0 | AO171: 0 | AP171: 0 | AQ171: 0 | AR171: 0 | AS171: 0 | AT171: 0 | AU171: 0 | AV171: 0
C172: Closing Balance | J172: =SUM(J168:J171) -> 241.6666667 | K172: =SUM(K168:K171) -> 483.3333333 | L172: 725 | M172: 775.3625 | N172: 830.2573298 | O172: 889.9445149 | P172: 954.6989988 | Q172: 1024.811499 | R172: 1088.824661 | S172: 1147.115215 | T172: 1200.036618 | U172: 1247.9205 | V172: 1291.078005 | W172: 1329.801059 | X172: 1364.363559 | Y172: 1398.926059 | Z172: 1433.488559 | AA172: 1468.051059 | AB172: 1502.613559 | AC172: 1537.176059 | AD172: 1571.738559 | AE172: 1606.301059 | AF172: 1640.863559 | AG172: 1640.863559 | AH172: 1640.863559 | AI172: =SUM(AI168:AI171) -> 1640.863559 | AJ172: 1640.863559 | AK172: 1640.863559 | AL172: 1640.863559 | AM172: 1640.863559 | AN172: 1640.863559 | AO172: 1640.863559 | AP172: 1640.863559 | AQ172: 1640.863559 | AR172: 1640.863559 | AS172: 1640.863559 | AT172: 1640.863559 | AU172: 1640.863559 | AV172: 1640.863559
C173: Debt Balance | J173: =J110 -> 0 | K173: 0 | L173: 0 | M173: 0 | N173: 0 | O173: 0 | P173: 0 | Q173: 0 | R173: 0 | S173: 0 | T173: 0 | U173: 0 | V173: 0 | W173: 0 | X173: 0 | Y173: 0 | Z173: 0 | AA173: 0 | AB173: 0 | AC173: 0 | AD173: 0 | AE173: 0 | AF173: 0 | AG173: 0 | AH173: 0 | AI173: =AI110 -> 0 | AJ173: 0 | AK173: 0 | AL173: 0 | AM173: 0 | AN173: 0 | AO173: 0 | AP173: 0 | AQ173: 0 | AR173: 0 | AS173: 0 | AT173: 0 | AU173: 0 | AV173: 0
D174: Total Liabilities and Capital | J174: =SUM(J172:J173) -> 241.6666667 | K174: =SUM(K172:K173) -> 483.3333333 | L174: 725 | M174: 775.3625 | N174: 830.2573298 | O174: 889.9445149 | P174: 954.6989988 | Q174: 1024.811499 | R174: 1088.824661 | S174: 1147.115215 | T174: 1200.036618 | U174: 1247.9205 | V174: 1291.078005 | W174: 1329.801059 | X174: 1364.363559 | Y174: 1398.926059 | Z174: 1433.488559 | AA174: 1468.051059 | AB174: 1502.613559 | AC174: 1537.176059 | AD174: 1571.738559 | AE174: 1606.301059 | AF174: 1640.863559 | AG174: 1640.863559 | AH174: 1640.863559 | AI174: =SUM(AI172:AI173) -> 1640.863559 | AJ174: 1640.863559 | AK174: 1640.863559 | AL174: 1640.863559 | AM174: 1640.863559 | AN174: 1640.863559 | AO174: 1640.863559 | AP174: 1640.863559 | AQ174: 1640.863559 | AR174: 1640.863559 | AS174: 1640.863559 | AT174: 1640.863559 | AU174: 1640.863559 | AV174: 1640.863559
D176: Difference | J176: =J174-J165 -> 0 | K176: =K174-K165 -> 0 | L176: 0 | M176: 86.6125 | N176: 177.7573298 | O176: 273.6945149 | P176: 374.6989988 | Q176: 481.0614988 | R176: 581.3246613 | S176: 675.8652146 | T176: 765.0366182 | U176: 849.1705 | V176: 928.5780048 | W176: 1003.551059 | X176: 1074.363559 | Y176: 1145.176059 | Z176: 1215.988559 | AA176: 1286.801059 | AB176: 1357.613559 | AC176: 1428.426059 | AD176: 1499.238559 | AE176: 1570.051059 | AF176: 1640.863559 | AG176: 1640.863559 | AH176: 1640.863559 | AI176: =AI174-AI165 -> 1640.863559 | AJ176: 1640.863559 | AK176: 1640.863559 | AL176: 1640.863559 | AM176: 1640.863559 | AN176: 1640.863559 | AO176: 1640.863559 | AP176: 1640.863559 | AQ176: 1640.863559 | AR176: 1640.863559 | AS176: 1640.863559 | AT176: 1640.863559 | AU176: 1640.863559 | AV176: 1640.863559
A178: Outputs
B179: CFADS | J179: =J151 -> 0 | K179: =K151 -> 0 | L179: 0 | M179: 0 | N179: 0 | O179: 0 | P179: 0 | Q179: 0 | R179: 0 | S179: 0 | T179: 0 | U179: 0 | V179: 0 | W179: 0 | X179: 0 | Y179: 0 | Z179: 0 | AA179: 0 | AB179: 0 | AC179: 0 | AD179: 0 | AE179: 0 | AF179: 0 | AG179: 0 | AH179: 0 | AI179: =AI151 -> 0 | AJ179: 0 | AK179: 0 | AL179: 0 | AM179: 0 | AN179: 0 | AO179: 0 | AP179: 0 | AQ179: 0 | AR179: 0 | AS179: 0 | AT179: 0 | AU179: 0 | AV179: 0
B180: Debt Service | J180: =J152+J153 -> 0 | K180: =K152+K153 -> 0 | L180: 0 | M180: 0 | N180: 0 | O180: 0 | P180: 0 | Q180: 0 | R180: 0 | S180: 0 | T180: 0 | U180: 0 | V180: 0 | W180: 0 | X180: 0 | Y180: 0 | Z180: 0 | AA180: 0 | AB180: 0 | AC180: 0 | AD180: 0 | AE180: 0 | AF180: 0 | AG180: 0 | AH180: 0 | AI180: =AI152+AI153 -> 0 | AJ180: 0 | AK180: 0 | AL180: 0 | AM180: 0 | AN180: 0 | AO180: 0 | AP180: 0 | AQ180: 0 | AR180: 0 | AS180: 0 | AT180: 0 | AU180: 0 | AV180: 0
C181: DSCR | J181: =IF(J180>0.1,J179/J180) -> FALSE | K181: =IF(K180>0.1,K179/K180) -> FALSE | L181: FALSE | M181: FALSE | N181: FALSE | O181: FALSE | P181: FALSE | Q181: FALSE | R181: FALSE | S181: FALSE | T181: FALSE | U181: FALSE | V181: FALSE | W181: FALSE | X181: FALSE | Y181: FALSE | Z181: FALSE | AA181: FALSE | AB181: FALSE | AC181: FALSE | AD181: FALSE | AE181: FALSE | AF181: FALSE | AG181: FALSE | AH181: FALSE | AI181: =IF(AI180>0.1,AI179/AI180) -> FALSE | AJ181: FALSE | AK181: FALSE | AL181: FALSE | AM181: FALSE | AN181: FALSE | AO181: FALSE | AP181: FALSE | AQ181: FALSE | AR181: FALSE | AS181: FALSE | AT181: FALSE | AU181: FALSE | AV181: FALSE
B183: Equity Cash Flow | J183: =J157-J102 -> -241.6666667 | K183: -241.6666667 | L183: -241.6666667 | M183: 0 | N183: 0 | O183: 0 | P183: 0 | Q183: 0 | R183: 0 | S183: 0 | T183: 0 | U183: 0 | V183: 0 | W183: 0 | X183: 0 | Y183: 0 | Z183: 0 | AA183: 0 | AB183: 0 | AC183: 0 | AD183: 0 | AE183: 0 | AF183: 0 | AG183: 0 | AH183: 0 | AI183: =AI157-AI102 -> 0 | AJ183: 0 | AK183: 0 | AL183: 0 | AM183: 0 | AN183: 0 | AO183: 0 | AP183: 0 | AQ183: 0 | AR183: 0 | AS183: 0 | AT183: 0 | AU183: 0 | AV183: 0
B184: Equity IRR | E184: =IFERROR(IRR(183:183),0) -> 0
